[Event "Late-Titled-Tuesday-Blitz-October-24-2023"]
[Site "Chess.com"]
[Date "2023.10.24"]
[Round "10"]
[White "cthulhuuu"]
[Black "carloseduar100"]
[Result "1-0"]
[WhiteElo "2424"]
[BlackElo "2298"]
[TimeControl "180+1"]
[EndTime "15:54:51 PDT"]
[Termination "cthulhuuu won by checkmate"]

1. e4 {[%clk 0:02:59.9]} 1... e6 {[%clk 0:02:44.9]} 2. d3 {[%clk 0:02:59.9]}
2... d5 {[%clk 0:02:44.9]} 3. Nd2 {[%clk 0:03:00.5]} 3... Nf6 {[%clk 0:02:45.2]}
4. Ngf3 {[%clk 0:03:01.2]} 4... Be7 {[%clk 0:02:45.5]} 5. g3 {[%clk 0:03:00.7]}
5... c5 {[%clk 0:02:46.2]} 6. Bg2 {[%clk 0:03:00.6]} 6... Nc6 {[%clk 0:02:47]}
7. O-O {[%clk 0:03:00.6]} 7... b5 {[%clk 0:02:47.8]} 8. Re1 {[%clk 0:03:00.1]}
8... a5 {[%clk 0:02:48.5]} 9. exd5 {[%clk 0:02:58.4]} 9... exd5 {[%clk
0:02:48.8]} 10. Ne5 {[%clk 0:02:54.9]} 10... Nxe5 {[%clk 0:02:47.3]} 11. Rxe5
{[%clk 0:02:54.9]} 11... Be6 {[%clk 0:02:47.3]} 12. Nf3 {[%clk 0:02:48.4]} 12...
h6 {[%clk 0:02:47.5]} 13. h3 {[%clk 0:01:41.3]} 13... O-O {[%clk 0:02:46.3]} 14.
Re1 {[%clk 0:01:32.7]} 14... a4 {[%clk 0:02:46]} 15. Ne5 {[%clk 0:01:31.2]}
15... Qc8 {[%clk 0:02:44.8]} 16. Kh2 {[%clk 0:01:30.2]} 16... b4 {[%clk
0:02:44.7]} 17. d4 {[%clk 0:01:27.5]} 17... c4 {[%clk 0:02:43.1]} 18. Be3 {[%clk
0:01:14]} 18... Nd7 {[%clk 0:02:30.6]} 19. Bf4 {[%clk 0:01:07.3]} 19... c3
{[%clk 0:02:21.7]} 20. b3 {[%clk 0:01:07.1]} 20... axb3 {[%clk 0:02:21.7]} 21.
axb3 {[%clk 0:01:08]} 21... Rxa1 {[%clk 0:02:20.5]} 22. Qxa1 {[%clk 0:01:08.9]}
22... Qa8 {[%clk 0:02:11.3]} 23. Qxa8 {[%clk 0:01:04.3]} 23... Rxa8 {[%clk
0:02:12.2]} 24. Nxd7 {[%clk 0:01:04]} 24... Ra2 {[%clk 0:02:06]} 25. Nc5 {[%clk
0:00:54]} 25... Rxc2 {[%clk 0:01:56.4]} 26. Nxe6 {[%clk 0:00:54.2]} 26... fxe6
{[%clk 0:01:56.3]} 27. Rxe6 {[%clk 0:00:54.3]} 27... Bf6 {[%clk 0:01:35.8]} 28.
Be3 {[%clk 0:00:43]} 28... Re2 {[%clk 0:01:28.4]} 29. Bxd5 {[%clk 0:00:41.5]}
29... c2 {[%clk 0:01:28.8]} 30. Rxf6+ {[%clk 0:00:35.9]} 30... Kh7 {[%clk
0:01:27.8]} 31. Rc6 {[%clk 0:00:33.9]} 31... h5 {[%clk 0:01:25.7]} 32. Rxc2
{[%clk 0:00:33.8]} 32... Rxc2 {[%clk 0:01:25.1]} 33. Be4+ {[%clk 0:00:34.1]}
33... g6 {[%clk 0:01:25.7]} 34. Bxc2 {[%clk 0:00:34.6]} 34... Kg7 {[%clk
0:01:26]} 35. Bd2 {[%clk 0:00:35.1]} 35... g5 {[%clk 0:01:25.9]} 36. Bxg5 {[%clk
0:00:34.6]} 36... h4 {[%clk 0:01:26.3]} 37. Bd2 {[%clk 0:00:35.5]} 37... hxg3+
{[%clk 0:01:26.4]} 38. Kxg3 {[%clk 0:00:36.4]} 38... Kf6 {[%clk 0:01:27]} 39. h4
{[%clk 0:00:36.9]} 39... Kg7 {[%clk 0:01:27.5]} 40. h5 {[%clk 0:00:37.3]} 40...
Kh8 {[%clk 0:01:27.9]} 41. h6 {[%clk 0:00:37.7]} 41... Kg8 {[%clk 0:01:28.3]}
42. Bxb4 {[%clk 0:00:37.8]} 42... Kh8 {[%clk 0:01:29.2]} 43. Bg6 {[%clk
0:00:34.9]} 43... Kg8 {[%clk 0:01:29.2]} 44. Be7 {[%clk 0:00:34.8]} 44... Kh8
{[%clk 0:01:28.1]} 45. d5 {[%clk 0:00:35.2]} 45... Kg8 {[%clk 0:01:27.6]} 46. d6
{[%clk 0:00:35.7]} 46... Kh8 {[%clk 0:01:28.5]} 47. d7 {[%clk 0:00:36]} 47...
Kg8 {[%clk 0:01:29.4]} 48. d8=Q# {[%clk 0:00:36.4]} 1-0

[Event "Late-Titled-Tuesday-Blitz-October-24-2023"]
[Site "Chess.com"]
[Date "2023.10.24"]
[Round "10"]
[White "Giorno"]
[Black "bylavochka"]
[Result "1-0"]
[WhiteElo "2541"]
[BlackElo "2353"]
[TimeControl "180+1"]
[EndTime "15:55:10 PDT"]
[Termination "Giorno won by resignation"]

1. d4 {[%clk 0:02:41.5]} 1... Nf6 {[%clk 0:02:59]} 2. g3 {[%clk 0:02:37.9]} 2...
g6 {[%clk 0:02:57.9]} 3. Bg2 {[%clk 0:02:38.5]} 3... Bg7 {[%clk 0:02:58.8]} 4.
e4 {[%clk 0:02:39]} 4... O-O {[%clk 0:02:59.1]} 5. Ne2 {[%clk 0:02:39.4]} 5...
d6 {[%clk 0:02:59.5]} 6. Nbc3 {[%clk 0:02:37.9]} 6... e5 {[%clk 0:02:59.9]} 7.
h3 {[%clk 0:02:37.9]} 7... Nc6 {[%clk 0:02:54.8]} 8. Be3 {[%clk 0:02:36.7]} 8...
exd4 {[%clk 0:02:41.6]} 9. Nxd4 {[%clk 0:02:37.6]} 9... Re8 {[%clk 0:02:40.1]}
10. O-O {[%clk 0:02:34.1]} 10... Bd7 {[%clk 0:02:27.7]} 11. g4 {[%clk
0:02:30.5]} 11... h5 {[%clk 0:02:11.7]} 12. g5 {[%clk 0:02:30]} 12... Nh7 {[%clk
0:02:11.5]} 13. f4 {[%clk 0:02:30.6]} 13... Nf8 {[%clk 0:01:44.7]} 14. f5 {[%clk
0:02:24.2]} 14... Nxd4 {[%clk 0:01:39.6]} 15. Bxd4 {[%clk 0:02:22.8]} 15...
Bxd4+ {[%clk 0:01:26.7]} 16. Qxd4 {[%clk 0:02:19.3]} 16... Qxg5 {[%clk
0:01:26.5]} 17. Nd5 {[%clk 0:02:16.7]} 17... Re5 {[%clk 0:00:58.1]} 18. Nxc7
{[%clk 0:02:06.4]} 18... Rc8 {[%clk 0:00:51.9]} 19. Qxd6 {[%clk 0:02:05.8]}
19... Rxe4 {[%clk 0:00:43.2]} 20. fxg6 {[%clk 0:01:54.7]} 20... Bxh3 {[%clk
0:00:19.4]} 21. gxf7+ {[%clk 0:01:47.5]} 21... Kg7 {[%clk 0:00:18.6]} 22. Rf2
{[%clk 0:01:22.9]} 22... Rg4 {[%clk 0:00:12.1]} 23. Ne8+ {[%clk 0:00:51.2]}
23... Kh8 {[%clk 0:00:11.6]} 24. Qxf8+ {[%clk 0:00:46.1]} 24... Kh7 {[%clk
0:00:10.2]} 25. Qg8+ {[%clk 0:00:44.1]} 25... Qxg8 {[%clk 0:00:09.7]} 26.
fxg8=Q+ {[%clk 0:00:44.1]} 26... Rxg8 {[%clk 0:00:04.5]} 27. Nf6+ {[%clk
0:00:44.1]} 27... Kh8 {[%clk 0:00:02.6]} 28. Nxg8 {[%clk 0:00:44.3]} 28... Rxg8
{[%clk 0:00:03.5]} 29. Kh2 {[%clk 0:00:44.8]} 29... Bxg2 {[%clk 0:00:03]} 30.
Rxg2 {[%clk 0:00:45.7]} 30... Rd8 {[%clk 0:00:03.2]} 31. Rf1 {[%clk 0:00:45.6]}
1-0

[Event "Late-Titled-Tuesday-Blitz-October-24-2023"]
[Site "Chess.com"]
[Date "2023.10.24"]
[Round "10"]
[White "kinghunter183"]
[Black "talaicito"]
[Result "1-0"]
[WhiteElo "2107"]
[BlackElo "2204"]
[TimeControl "180+1"]
[EndTime "15:55:11 PDT"]
[Termination "kinghunter183 won by resignation"]

1. b3 {[%clk 0:03:00.9]} 1... b6 {[%clk 0:03:00.9]} 2. Bb2 {[%clk 0:03:00]} 2...
Bb7 {[%clk 0:03:01.8]} 3. Nf3 {[%clk 0:02:59.1]} 3... e6 {[%clk 0:03:01.5]} 4.
c4 {[%clk 0:02:59.1]} 4... d6 {[%clk 0:03:01.8]} 5. d4 {[%clk 0:02:59.5]} 5...
Nd7 {[%clk 0:03:02.3]} 6. Nbd2 {[%clk 0:02:59.7]} 6... Ne7 {[%clk 0:03:00.1]} 7.
e4 {[%clk 0:03:00]} 7... h6 {[%clk 0:03:00.2]} 8. Bd3 {[%clk 0:02:59.3]} 8... g6
{[%clk 0:02:59]} 9. O-O {[%clk 0:02:51.4]} 9... Bg7 {[%clk 0:02:59.1]} 10. Re1
{[%clk 0:02:51.7]} 10... a6 {[%clk 0:02:58.9]} 11. Qc2 {[%clk 0:02:50.3]} 11...
g5 {[%clk 0:02:58.6]} 12. e5 {[%clk 0:02:44.5]} 12... d5 {[%clk 0:02:51.4]} 13.
cxd5 {[%clk 0:02:37.5]} 13... Nxd5 {[%clk 0:02:50.3]} 14. Ba3 {[%clk 0:02:31]}
14... Rc8 {[%clk 0:02:27]} 15. Ne4 {[%clk 0:02:25.4]} 15... c5 {[%clk
0:02:01.1]} 16. Nd6+ {[%clk 0:02:22.8]} 16... Kf8 {[%clk 0:01:55]} 17. Nxb7
{[%clk 0:02:19]} 17... Qe7 {[%clk 0:01:48.8]} 18. Nd6 {[%clk 0:02:10.7]} 18...
Rc6 {[%clk 0:01:43.2]} 19. Bxa6 {[%clk 0:02:06.5]} 19... Rxd6 {[%clk 0:01:36]}
20. exd6 {[%clk 0:02:05.3]} 20... Qxd6 {[%clk 0:01:36.9]} 21. Bb5 {[%clk
0:01:52.1]} 21... g4 {[%clk 0:01:35.6]} 22. Bxd7 {[%clk 0:01:35.5]} 22... Qxd7
{[%clk 0:01:16.8]} 23. Ne5 {[%clk 0:01:33.4]} 23... Bxe5 {[%clk 0:01:13.5]} 24.
Rxe5 {[%clk 0:01:29]} 24... Kg7 {[%clk 0:01:06.7]} 25. dxc5 {[%clk 0:01:22.5]}
25... bxc5 {[%clk 0:01:01.5]} 26. Qxc5 {[%clk 0:01:12.3]} 26... Rc8 {[%clk
0:00:36.6]} 27. Qd4 {[%clk 0:01:09.4]} 27... Kh7 {[%clk 0:00:36]} 28. Qxg4
{[%clk 0:01:02.8]} 28... Rg8 {[%clk 0:00:33.9]} 29. Qe4+ {[%clk 0:01:00.3]}
29... Kh8 {[%clk 0:00:30.2]} 30. Bb2 {[%clk 0:00:55.8]} 30... f6 {[%clk
0:00:20.3]} 31. Rxe6 {[%clk 0:00:54.2]} 31... Rg7 {[%clk 0:00:13.5]} 32. Rxf6
{[%clk 0:00:51.1]} 32... Nxf6 {[%clk 0:00:09.1]} 33. Bxf6 {[%clk 0:00:49.6]}
33... Kg8 {[%clk 0:00:09.8]} 34. Bxg7 {[%clk 0:00:43.5]} 34... Kxg7 {[%clk
0:00:10.7]} 35. Re1 {[%clk 0:00:41.9]} 1-0

[Event "Late-Titled-Tuesday-Blitz-October-24-2023"]
[Site "Chess.com"]
[Date "2023.10.24"]
[Round "10"]
[White "Grischuk"]
[Black "KNVB"]
[Result "1-0"]
[WhiteElo "2989"]
[BlackElo "2692"]
[TimeControl "180+1"]
[EndTime "15:55:12 PDT"]
[Termination "Grischuk won on time"]

1. d4 {[%clk 0:03:00.9]} 1... Nf6 {[%clk 0:02:58.6]} 2. c4 {[%clk 0:03:01.2]}
2... e5 {[%clk 0:02:58]} 3. dxe5 {[%clk 0:03:00.8]} 3... Ng4 {[%clk 0:02:55.9]}
4. e3 {[%clk 0:03:00.9]} 4... Nxe5 {[%clk 0:02:54.4]} 5. f4 {[%clk 0:03:01.1]}
5... Nec6 {[%clk 0:02:42]} 6. Ne2 {[%clk 0:03:01.1]} 6... d6 {[%clk 0:02:24.3]}
7. Ng3 {[%clk 0:02:38.9]} 7... Nd7 {[%clk 0:02:07]} 8. Be2 {[%clk 0:02:28.7]}
8... Nc5 {[%clk 0:02:01.3]} 9. O-O {[%clk 0:02:28.7]} 9... a5 {[%clk 0:01:39.5]}
10. Nc3 {[%clk 0:02:27.1]} 10... g6 {[%clk 0:01:24.7]} 11. b3 {[%clk 0:02:26.4]}
11... Bg7 {[%clk 0:01:23.6]} 12. Bb2 {[%clk 0:02:26.5]} 12... O-O {[%clk
0:01:23.2]} 13. Qd2 {[%clk 0:02:26.2]} 13... a4 {[%clk 0:01:06.2]} 14. Nd5
{[%clk 0:02:23]} 14... axb3 {[%clk 0:00:45.8]} 15. Bxg7 {[%clk 0:02:22.7]} 15...
Kxg7 {[%clk 0:00:46.7]} 16. axb3 {[%clk 0:02:19]} 16... Rxa1 {[%clk 0:00:42.2]}
17. Rxa1 {[%clk 0:02:17.8]} 17... Ne7 {[%clk 0:00:27]} 18. Qc3+ {[%clk
0:02:11.4]} 18... f6 {[%clk 0:00:27]} 19. b4 {[%clk 0:02:09.4]} 19... Nd7 {[%clk
0:00:16.1]} 20. Bf3 {[%clk 0:02:03.8]} 20... c6 {[%clk 0:00:10.5]} 21. Nxe7
{[%clk 0:02:03.3]} 21... Qxe7 {[%clk 0:00:11.4]} 22. Ne4 {[%clk 0:01:56.1]}
22... Rd8 {[%clk 0:00:07.9]} 23. Rd1 {[%clk 0:01:47.3]} 23... Nf8 {[%clk
0:00:04.6]} 24. h3 {[%clk 0:01:43.5]} 24... Bf5 {[%clk 0:00:03.5]} 25. Nf2
{[%clk 0:01:40.6]} 25... Be6 {[%clk 0:00:03]} 26. g4 {[%clk 0:01:35.5]} 26...
Kf7 {[%clk 0:00:02.6]} 27. Ne4 {[%clk 0:01:33.6]} 27... d5 {[%clk 0:00:02.1]}
28. Nc5 {[%clk 0:01:33.7]} 28... dxc4 {[%clk 0:00:02]} 29. Rxd8 {[%clk
0:01:32.8]} 29... Qxd8 {[%clk 0:00:02.7]} 30. Kf2 {[%clk 0:01:29.2]} 30... b5
{[%clk 0:00:02.3]} 31. Bxc6 {[%clk 0:01:28.8]} 31... Qb6 {[%clk 0:00:02.2]} 32.
Bf3 {[%clk 0:01:26.9]} 32... Qd6 {[%clk 0:00:02.3]} 33. Ne4 {[%clk 0:01:25.4]}
33... Qd8 {[%clk 0:00:01.9]} 34. h4 {[%clk 0:01:23.4]} 34... Bc8 {[%clk
0:00:01.5]} 35. g5 {[%clk 0:01:23.6]} 35... f5 {[%clk 0:00:01.5]} 36. Nf6 {[%clk
0:01:21.5]} 36... Be6 {[%clk 0:00:01.4]} 37. Bc6 {[%clk 0:01:19.7]} 37... Qb6
{[%clk 0:00:01.3]} 38. Bf3 {[%clk 0:01:18.9]} 38... Qd8 {[%clk 0:00:01.5]} 39.
h5 {[%clk 0:01:19.4]} 39... Nd7 {[%clk 0:00:01.6]} 40. Nxh7 {[%clk 0:01:18.5]}
40... Qg8 {[%clk 0:00:01.2]} 41. Nf6 {[%clk 0:01:12.4]} 41... Qh8 {[%clk
0:00:01.8]} 42. hxg6+ {[%clk 0:01:12.6]} 42... Kxg6 {[%clk 0:00:01.7]} 43. Bh5+
{[%clk 0:01:12.9]} 43... Kg7 {[%clk 0:00:01.6]} 44. Nxd7+ {[%clk 0:01:13.1]} 1-0

[Event "Late-Titled-Tuesday-Blitz-October-24-2023"]
[Site "Chess.com"]
[Date "2023.10.24"]
[Round "10"]
[White "NikolaGry"]
[Black "The_Sherman_Variation"]
[Result "1-0"]
[WhiteElo "2739"]
[BlackElo "2590"]
[TimeControl "180+1"]
[EndTime "15:55:13 PDT"]
[Termination "NikolaGry won by resignation"]

1. d4 {[%clk 0:03:00.9]} 1... e6 {[%clk 0:03:00.9]} 2. Nf3 {[%clk 0:02:59.8]}
2... d5 {[%clk 0:03:00.6]} 3. c4 {[%clk 0:02:58.4]} 3... Nf6 {[%clk 0:03:01.2]}
4. Nc3 {[%clk 0:02:58.6]} 4... dxc4 {[%clk 0:03:00.1]} 5. Bg5 {[%clk 0:02:54.9]}
5... Bb4 {[%clk 0:02:58.8]} 6. Qa4+ {[%clk 0:02:48.3]} 6... Nc6 {[%clk
0:02:58.5]} 7. e3 {[%clk 0:02:46.8]} 7... O-O {[%clk 0:02:56.2]} 8. Bxc4 {[%clk
0:02:43.3]} 8... h6 {[%clk 0:02:54.6]} 9. Bh4 {[%clk 0:02:40.7]} 9... Bd7 {[%clk
0:02:51.4]} 10. Qc2 {[%clk 0:02:39.3]} 10... Bd6 {[%clk 0:02:50.7]} 11. O-O-O
{[%clk 0:02:35.9]} 11... a6 {[%clk 0:02:40.1]} 12. g4 {[%clk 0:02:26.6]} 12...
b5 {[%clk 0:02:39.2]} 13. Bb3 {[%clk 0:02:11.4]} 13... Be7 {[%clk 0:02:33.4]}
14. Bxf6 {[%clk 0:02:04.9]} 14... Bxf6 {[%clk 0:02:33.2]} 15. h4 {[%clk
0:02:04.1]} 15... Nb4 {[%clk 0:02:33.3]} 16. Qe2 {[%clk 0:01:47.4]} 16... Be7
{[%clk 0:02:21.6]} 17. g5 {[%clk 0:01:33]} 17... h5 {[%clk 0:02:21.5]} 18. g6
{[%clk 0:01:24.1]} 18... fxg6 {[%clk 0:02:21.4]} 19. Ne5 {[%clk 0:01:24]} 19...
Rf6 {[%clk 0:02:16.4]} 20. Ne4 {[%clk 0:01:16.8]} 20... Qe8 {[%clk 0:02:01.3]}
21. Rhg1 {[%clk 0:01:10.6]} 21... Nd5 {[%clk 0:01:58.4]} 22. Nxf6+ {[%clk
0:01:03.8]} 22... Bxf6 {[%clk 0:01:28.9]} 23. Nxg6 {[%clk 0:01:02.5]} 23... c5
{[%clk 0:01:21.1]} 24. dxc5 {[%clk 0:00:58.1]} 24... Rc8 {[%clk 0:01:20.5]} 25.
Kb1 {[%clk 0:00:42.3]} 25... Rxc5 {[%clk 0:01:19.8]} 26. e4 {[%clk 0:00:28.4]}
26... Nb6 {[%clk 0:01:08.4]} 27. e5 {[%clk 0:00:27.7]} 27... Bd8 {[%clk
0:00:53.5]} 28. Qxh5 {[%clk 0:00:24.4]} 28... Nc4 {[%clk 0:00:51.6]} 29. Rxd7
{[%clk 0:00:18]} 1-0

[Event "Late-Titled-Tuesday-Blitz-October-24-2023"]
[Site "Chess.com"]
[Date "2023.10.24"]
[Round "10"]
[White "CraiggoryC"]
[Black "giomar27"]
[Result "1-0"]
[WhiteElo "2212"]
[BlackElo "2364"]
[TimeControl "180+1"]
[EndTime "15:55:15 PDT"]
[Termination "CraiggoryC won by resignation"]

1. e4 {[%clk 0:02:58.8]} 1... e5 {[%clk 0:02:57.6]} 2. Nf3 {[%clk 0:02:56.3]}
2... Nc6 {[%clk 0:02:58.2]} 3. Nc3 {[%clk 0:02:56.1]} 3... Nf6 {[%clk
0:02:58.1]} 4. g3 {[%clk 0:02:56.2]} 4... d5 {[%clk 0:02:57.1]} 5. exd5 {[%clk
0:02:57.1]} 5... Nxd5 {[%clk 0:02:57.7]} 6. Bg2 {[%clk 0:02:56.9]} 6... Nxc3
{[%clk 0:02:44.5]} 7. bxc3 {[%clk 0:02:57.8]} 7... Bc5 {[%clk 0:02:27.7]} 8. O-O
{[%clk 0:02:55.3]} 8... O-O {[%clk 0:02:27.8]} 9. d3 {[%clk 0:02:27.1]} 9... Bg4
{[%clk 0:02:27.4]} 10. h3 {[%clk 0:02:26.2]} 10... Bh5 {[%clk 0:02:27.7]} 11. g4
{[%clk 0:02:16.3]} 11... Bg6 {[%clk 0:02:27.8]} 12. Rb1 {[%clk 0:02:08.8]} 12...
Bb6 {[%clk 0:02:26.3]} 13. c4 {[%clk 0:02:09.3]} 13... f5 {[%clk 0:02:22.9]} 14.
c5 {[%clk 0:02:00.6]} 14... Bxc5 {[%clk 0:02:21.7]} 15. Rxb7 {[%clk 0:02:01.2]}
15... Bb6 {[%clk 0:02:18]} 16. Ng5 {[%clk 0:01:54.7]} 16... Nd4 {[%clk
0:02:04.3]} 17. c3 {[%clk 0:01:52.5]} 17... f4 {[%clk 0:01:54.2]} 18. cxd4
{[%clk 0:01:32.2]} 18... Qxg5 {[%clk 0:01:54]} 19. Rxb6 {[%clk 0:01:20.1]} 19...
axb6 {[%clk 0:01:51.2]} 20. Bxa8 {[%clk 0:01:19.8]} 20... Rxa8 {[%clk
0:01:51.4]} 21. dxe5 {[%clk 0:01:10.7]} 21... Qxe5 {[%clk 0:01:47.4]} 22. Qf3
{[%clk 0:01:10.2]} 22... Rf8 {[%clk 0:01:44.1]} 23. Bd2 {[%clk 0:01:06.5]} 23...
Qd4 {[%clk 0:01:41.6]} 24. Rc1 {[%clk 0:00:56.9]} 24... c5 {[%clk 0:01:40.3]}
25. Qb7 {[%clk 0:00:48.2]} 25... h5 {[%clk 0:01:05.2]} 26. Bc3 {[%clk
0:00:44.5]} 26... Rf7 {[%clk 0:00:41.8]} 27. Qc8+ {[%clk 0:00:33.1]} 27... Rf8
{[%clk 0:00:41.1]} 28. Qxf8+ {[%clk 0:00:31.1]} 28... Kxf8 {[%clk 0:00:41.2]}
29. Bxd4 {[%clk 0:00:31.8]} 29... cxd4 {[%clk 0:00:41.8]} 30. Rc6 {[%clk
0:00:29]} 30... Bxd3 {[%clk 0:00:41]} 31. Rxb6 {[%clk 0:00:29]} 31... hxg4
{[%clk 0:00:40.8]} 32. Rd6 {[%clk 0:00:26.5]} 32... gxh3 {[%clk 0:00:35.2]} 33.
Rxd4 {[%clk 0:00:26.3]} 33... Bb1 {[%clk 0:00:34.9]} 34. Rxf4+ {[%clk
0:00:25.9]} 34... Ke7 {[%clk 0:00:35.4]} 35. a4 {[%clk 0:00:25.6]} 35... g5
{[%clk 0:00:34.9]} 36. Rb4 {[%clk 0:00:21.5]} 36... Kd6 {[%clk 0:00:34.5]} 37.
Rxb1 {[%clk 0:00:21.2]} 1-0

[Event "Late-Titled-Tuesday-Blitz-October-24-2023"]
[Site "Chess.com"]
[Date "2023.10.24"]
[Round "10"]
[White "Felix-Rose"]
[Black "Kostukov_Alex"]
[Result "1-0"]
[WhiteElo "2343"]
[BlackElo "2427"]
[TimeControl "180+1"]
[EndTime "15:55:22 PDT"]
[Termination "Felix-Rose won by resignation"]

1. e4 {[%clk 0:02:59.9]} 1... c5 {[%clk 0:02:58.5]} 2. Nf3 {[%clk 0:03:00.1]}
2... g6 {[%clk 0:02:56]} 3. d4 {[%clk 0:03:00.2]} 3... c4 {[%clk 0:02:56.4]} 4.
Bxc4 {[%clk 0:02:59.2]} 4... Bg7 {[%clk 0:02:56.6]} 5. O-O {[%clk 0:02:55.8]}
5... d5 {[%clk 0:02:48.6]} 6. Bxd5 {[%clk 0:02:52.7]} 6... Nf6 {[%clk
0:02:48.4]} 7. Nc3 {[%clk 0:02:49.2]} 7... Nxd5 {[%clk 0:02:48.3]} 8. Nxd5
{[%clk 0:02:46.1]} 8... Nc6 {[%clk 0:02:48.3]} 9. c3 {[%clk 0:02:43.8]} 9... O-O
{[%clk 0:02:42.1]} 10. h3 {[%clk 0:02:41.3]} 10... b6 {[%clk 0:02:30.4]} 11. Re1
{[%clk 0:02:39]} 11... Ba6 {[%clk 0:02:26.1]} 12. Qa4 {[%clk 0:02:36.2]} 12...
Bb7 {[%clk 0:02:25.8]} 13. Bg5 {[%clk 0:02:33.7]} 13... h6 {[%clk 0:02:22.8]}
14. Bh4 {[%clk 0:02:28.7]} 14... g5 {[%clk 0:02:21.6]} 15. Bg3 {[%clk
0:02:28.2]} 15... e6 {[%clk 0:02:18.1]} 16. Nc7 {[%clk 0:01:58]} 16... Rc8
{[%clk 0:02:15.6]} 17. Nb5 {[%clk 0:01:58.2]} 17... Na5 {[%clk 0:01:12.8]} 18.
Nd6 {[%clk 0:01:19.9]} 18... Bc6 {[%clk 0:01:07.7]} 19. Qd1 {[%clk 0:01:20]}
19... Ra8 {[%clk 0:01:05]} 20. d5 {[%clk 0:01:15.3]} 20... exd5 {[%clk
0:01:00.8]} 21. exd5 {[%clk 0:01:15.5]} 21... Bd7 {[%clk 0:01:00.5]} 22. b4
{[%clk 0:01:01.4]} 22... Bxc3 {[%clk 0:00:57.8]} 23. bxa5 {[%clk 0:01:01.7]}
23... bxa5 {[%clk 0:00:44.3]} 24. Nb7 {[%clk 0:00:40.1]} 24... Qb6 {[%clk
0:00:25.6]} 25. Rb1 {[%clk 0:00:39.2]} 25... Qg6 {[%clk 0:00:19.5]} 26. Ne5
{[%clk 0:00:34.3]} 26... Qf5 {[%clk 0:00:15.8]} 27. Nd6 {[%clk 0:00:27.8]} 1-0

[Event "Late-Titled-Tuesday-Blitz-October-24-2023"]
[Site "Chess.com"]
[Date "2023.10.24"]
[Round "10"]
[White "mishanick"]
[Black "MikaelyanArman"]
[Result "1-0"]
[WhiteElo "3048"]
[BlackElo "2917"]
[TimeControl "180+1"]
[EndTime "15:55:28 PDT"]
[Termination "mishanick won by resignation"]

1. d4 {[%clk 0:03:00.9]} 1... Nf6 {[%clk 0:02:58.2]} 2. c4 {[%clk 0:03:01.3]}
2... c5 {[%clk 0:02:58.7]} 3. d5 {[%clk 0:03:01.4]} 3... e6 {[%clk 0:02:59.4]}
4. Nc3 {[%clk 0:03:01.6]} 4... exd5 {[%clk 0:03:00]} 5. cxd5 {[%clk 0:03:02.5]}
5... d6 {[%clk 0:03:00.6]} 6. e4 {[%clk 0:03:03.2]} 6... g6 {[%clk 0:03:01.2]}
7. h3 {[%clk 0:03:03.8]} 7... Bg7 {[%clk 0:03:01.3]} 8. Nf3 {[%clk 0:03:04.5]}
8... O-O {[%clk 0:03:01.4]} 9. Bd3 {[%clk 0:03:05.3]} 9... a6 {[%clk 0:02:58.3]}
10. a4 {[%clk 0:03:05.1]} 10... Nbd7 {[%clk 0:02:52]} 11. O-O {[%clk 0:03:04.8]}
11... Re8 {[%clk 0:02:52.5]} 12. Bf4 {[%clk 0:03:04.2]} 12... Nh5 {[%clk
0:02:48.8]} 13. Bh2 {[%clk 0:03:00.9]} 13... Ne5 {[%clk 0:02:41]} 14. Nxe5
{[%clk 0:03:01]} 14... Bxe5 {[%clk 0:02:40.4]} 15. Bxe5 {[%clk 0:02:56.9]} 15...
Rxe5 {[%clk 0:02:41.3]} 16. f4 {[%clk 0:02:56.1]} 16... Re8 {[%clk 0:02:40.6]}
17. Qf3 {[%clk 0:02:50.5]} 17... Qf6 {[%clk 0:02:17.4]} 18. Rae1 {[%clk
0:02:38.1]} 18... c4 {[%clk 0:01:54.2]} 19. Bc2 {[%clk 0:02:35]} 19... b5 {[%clk
0:01:35.2]} 20. axb5 {[%clk 0:02:33.6]} 20... axb5 {[%clk 0:01:34.2]} 21. g4
{[%clk 0:02:13.9]} 21... b4 {[%clk 0:01:10.3]} 22. Nb5 {[%clk 0:02:05.8]} 22...
Qxb2 {[%clk 0:01:05.5]} 23. Bb1 {[%clk 0:01:53.3]} 23... c3 {[%clk 0:00:36.9]}
24. Rf2 {[%clk 0:01:48.4]} 24... Qb3 {[%clk 0:00:31.7]} 25. Bc2 {[%clk 0:01:46]}
25... Qb2 {[%clk 0:00:27.5]} 26. Nxd6 {[%clk 0:01:32.8]} 26... Rd8 {[%clk
0:00:28]} 27. Nc4 {[%clk 0:01:26.5]} 27... Qa2 {[%clk 0:00:27.8]} 28. Bd3 {[%clk
0:01:27.1]} 28... Qa7 {[%clk 0:00:24.1]} 29. gxh5 {[%clk 0:01:27.5]} 29... b3
{[%clk 0:00:24.4]} 30. f5 {[%clk 0:01:22.1]} 30... c2 {[%clk 0:00:20.6]} 31. Kg2
{[%clk 0:01:09.6]} 31... Ba6 {[%clk 0:00:18.7]} 32. Ne5 {[%clk 0:01:02.5]} 32...
Bxd3 {[%clk 0:00:17.4]} 33. Qxd3 {[%clk 0:01:02.1]} 33... Rac8 {[%clk
0:00:15.3]} 34. fxg6 {[%clk 0:00:59.2]} 34... hxg6 {[%clk 0:00:15.8]} 35. Rxf7
{[%clk 0:00:48.7]} 35... c1=N {[%clk 0:00:05.8]} 36. Rxa7 {[%clk 0:00:45.5]}
36... Nxd3 {[%clk 0:00:05.1]} 37. Nxd3 {[%clk 0:00:46.4]} 37... Rc2+ {[%clk
0:00:05.5]} 38. Kf3 {[%clk 0:00:46.4]} 38... Rc3 {[%clk 0:00:05.8]} 39. Ke3
{[%clk 0:00:46.9]} 39... b2 {[%clk 0:00:05.9]} 40. Rb7 {[%clk 0:00:47.4]} 40...
Rc2 {[%clk 0:00:04]} 41. Rxb2 {[%clk 0:00:47.5]} 1-0